bitfinex/quotes_SOLUSD_20220228
["timestamp","ask_amount","ask_price","bid_price","bid_amount"]
[1646031753227,35.69806621,86.886,86.859,0.0035387]
[1646031753428,25.09406621,86.885,86.859,0.0035387]
[1646031753627,17.2881,86.87,86.859,0.0035387]
[1646031753827,33.6011,86.869,86.859,0.0035387]
[1646031754030,36.34788921,86.869,86.859,0.0035387]
[1646031754428,2.74678921,86.868,86.859,0.0035387]
[1646031754629,10.604,86.867,86.859,0.0035387]
[1646031756829,6.0,86.867,86.859,0.0035387]
[1646031757030,6.0,86.868,86.859,0.0035387]
[1646031758331,6.0,86.898,86.859,0.0035387]
[1646031758532,4.604,86.897,86.859,0.0035387]
[1646031758732,6.0,86.896,86.859,0.0035387]
[1646031758932,4.604,86.895,86.859,0.0035387]
[1646031759134,6.0,86.894,86.859,0.0035387]
[1646031759334,27.599,86.893,86.859,0.0035387]
[1646031759532,6.0,86.892,86.859,0.0035387]
[1646031760132,32.44485542,86.891,86.859,0.0035387]
[1646031760332,6.0,86.89,86.859,0.0035387]
[1646031760533,4.604,86.889,86.859,0.0035387]
[1646031760733,6.0,86.888,86.859,0.0035387]
[1646031760936,4.604,86.887,86.859,0.0035387]
[1646031761132,6.0,86.886,86.859,0.0035387]
[1646031761333,4.604,86.885,86.859,0.0035387]
[1646031761535,6.0,86.884,86.859,0.0035387]
[1646031761736,4.604,86.883,86.859,0.0035387]
[1646031761937,43.09607713,86.881,86.81,2.91104172]
[1646031762336,6.0,86.88,86.81,2.91104172]
[1646031763336,2.74678921,86.879,86.81,2.91104172]
[1646031763535,10.605,86.878,86.81,2.91104172]
[1646031763741,1.79401257,86.877,86.75,16.68]
[1646031763936,10.607,86.876,86.75,16.68]
[1646031764138,37.08642303,86.876,86.74,2.57757246]
[1646031764338,26.6863148,86.875,86.74,2.57757246]
[1646031764535,1.47109955,86.873,86.74,2.57757246]
[1646031764737,115.3,86.859,86.74,2.57757246]
[1646031764937,17.2962,86.83,86.74,2.57757246]
[1646031765139,60.11894441,86.828,86.74,2.57757246]
[1646031765339,10.609,86.827,86.74,2.57757246]
[1646031765537,35.70306621,86.827,86.74,2.57757246]
[1646031765738,25.09406621,86.826,86.74,2.57757246]
[1646031765938,6.0,86.825,86.723,2.26455055]
[1646031766139,28.5421,86.825,86.724,6.0]
[1646031766339,28.5421,86.825,86.741,2.74678921]
[1646031766741,28.5421,86.825,86.725,2.74678921]
[1646031766942,4.609,86.824,86.727,2.87093895]
[1646031767140,6.0,86.823,86.728,6.0]
[1646031767343,4.609,86.822,86.728,6.0]
[1646031767546,17.2962,86.82,86.728,6.0]
[1646031767743,10.609,86.819,86.728,6.0]
[1646031767945,10.609,86.819,86.73,2.72605048]
[1646031768144,10.609,86.819,86.731,6.0]
[1646031768544,10.609,86.819,86.732,2.74678921]
[1646031768745,10.609,86.819,86.734,115.3]
[1646031768945,10.609,86.819,86.735,6.0]
[1646031769343,10.609,86.819,86.733,6.0]
[1646031770267,17.2982,86.81,86.728,6.0]
[1646031770566,10.609,86.809,86.728,6.0]
[1646031770967,2.74678921,86.808,86.716,2.4715125]
[1646031771165,10.61,86.807,86.716,2.4715125]
[1646031771366,10.61,86.807,86.717,6.0]
[1646031772170,48.16810593,86.799,86.716,2.4715125]
[1646031772367,10.61,86.798,86.716,2.4715125]
[1646031772567,13.35678921,86.798,86.716,2.4715125]
[1646031773466,17.3023,86.79,86.716,2.4715125]
[1646031773667,10.61,86.789,86.716,2.4715125]
[1646031774270,10.61,86.789,86.695,24.0861]
[1646031774471,10.61,86.789,86.696,8.827959]
[1646031774671,17.304,86.78,86.696,8.827959]
[1646031774870,6.0,86.779,86.696,8.827959]
[1646031775069,10.611,86.779,86.696,8.827959]
[1646031775268,10.611,86.779,86.696,2.827959]
[1646031775969,4.611,86.779,86.699,2.68875839]
[1646031776169,4.611,86.791,86.702,2.68668242]
[1646031776370,6.0,86.79,86.703,6.0]
[1646031776569,6.0,86.79,86.705,2.8925986]
[1646031776769,6.0,86.791,86.706,6.0]
[1646031776969,6.0,86.791,86.706,29.5109]
[1646031777173,6.0,86.791,86.707,2.49044084]
[1646031777369,6.0,86.791,86.708,6.0]
[1646031778070,4.61,86.79,86.707,2.49044084]
[1646031778370,6.0,86.789,86.707,2.49044084]
[1646031778570,4.611,86.788,86.707,2.49044084]
[1646031778773,6.0,86.787,86.707,2.49044084]
[1646031778971,4.611,86.786,86.709,115.3]
[1646031779172,6.35,86.792,86.711,115.3]
[1646031779373,6.0,86.791,86.714,2.27202811]
[1646031779573,6.0,86.791,86.715,6.0]
[1646031780373,6.0,86.791,86.714,6.0]
[1646031780576,6.0,86.791,86.716,2.74678921]
[1646031780773,6.0,86.791,86.717,6.0]
[1646031781173,6.35,86.792,86.717,6.0]
[1646031781875,6.0,86.791,86.717,6.0]
[1646031782076,6.35,86.792,86.72,17.2961]
[1646031782280,6.35,86.792,86.722,115.3]
[1646031782477,6.35,86.792,86.724,115.3]
[1646031782677,6.35,86.792,86.725,8.41669792]
[1646031783078,6.35,86.792,86.726,115.3]
[1646031783278,6.35,86.792,86.727,8.84575754]
[1646031784278,6.35,86.792,86.727,6.0]
[1646031784478,6.35,86.792,86.724,115.3]
[1646031784679,6.35,86.792,86.726,115.3]
[1646031784881,6.35,86.792,86.741,115.3]
[1646031785079,6.35,86.792,86.743,115.3]
[1646031785280,6.35,86.792,86.745,115.3]
[1646031785481,6.35,86.792,86.751,115.3]
[1646031785682,48.0081,86.854,86.753,115.3]
[1646031785881,56.12633581,86.853,86.755,115.3]
[1646031786081,56.12633581,86.853,86.757,115.3]
[1646031786281,56.12633581,86.853,86.754,6.0]
[1646031786282,50.12633581,86.853,86.761,115.3]
[1646031786481,50.12633581,86.853,86.763,115.3]
[1646031786680,50.12633581,86.853,86.765,115.3]
[1646031786882,6.0,86.852,86.766,8.4940781]
[1646031787082,17.2902,86.85,86.766,2.4940781]
[1646031787282,10.607,86.849,86.766,2.4940781]
[1646031787484,30.86006621,86.849,86.766,2.4940781]
[1646031787684,4.607,86.848,86.766,2.4940781]
[1646031787885,6.0,86.847,86.766,2.4940781]
[1646031788081,17.2923,86.84,86.766,2.4940781]
[1646031788282,10.608,86.839,86.766,2.4940781]
[1646031788582,13.35478921,86.839,86.766,2.4940781]
[1646031789082,142.90685542,86.838,86.752,3.08229335]
[1646031789283,115.3,86.836,86.752,3.08229335]
[1646031789481,115.3,86.829,86.71,16.68]
[1646031789681,115.3,86.827,86.717,3.04292685]
[1646031789883,167.33747319,86.825,86.717,3.04292685]
[1646031790084,10.609,86.824,86.717,3.04292685]
[1646031790284,115.3,86.823,86.717,3.04292685]
[1646031790483,17.3005,86.81,86.718,6.0]
[1646031790682,6.0,86.809,86.718,6.0]
[1646031791083,8.74678921,86.809,86.718,6.0]
[1646031791283,4.61,86.808,86.717,3.04292685]
[1646031791487,17.3007,86.8,86.717,3.04292685]
[1646031791684,10.61,86.799,86.717,3.04292685]
[1646031791884,50.65234288,86.798,86.717,3.04292685]
[1646031792085,10.61,86.797,86.717,3.04292685]
[1646031792884,6.0,86.797,86.717,3.04292685]
[1646031793087,4.61,86.796,86.717,3.04292685]
[1646031793288,6.0,86.795,86.717,3.04292685]
[1646031793487,17.3019,86.79,86.717,3.04292685]
[1646031793686,6.0,86.789,86.717,3.04292685]
[1646031794989,4.61,86.788,86.717,3.04292685]
[1646031795193,6.0,86.787,86.717,3.04292685]
[1646031795792,4.61,86.786,86.717,3.04292685]
[1646031796106,6.0,86.785,86.717,3.04292685]
[1646031796293,4.61,86.784,86.717,3.04292685]
[1646031796492,6.0,86.783,86.717,3.04292685]
[1646031796694,50.65234288,86.798,86.717,3.04292685]
[1646031796891,6.0,86.797,86.717,3.04292685]
[1646031797891,6.0,86.797,86.718,2.74678921]
[1646031798292,6.0,86.797,86.719,6.0]
[1646031798494,17.3022,86.79,86.718,6.0]
[1646031798694,6.0,86.789,86.718,6.0]
[1646031798894,6.0,86.789,86.717,3.04292685]
[1646031799095,4.61,86.788,86.717,3.04292685]
[1646031799396,6.0,86.787,86.717,3.04292685]
[1646031799694,4.61,86.786,86.717,3.04292685]
[1646031799894,6.0,86.785,86.717,3.04292685]
[1646031800096,4.61,86.784,86.717,3.04292685]
[1646031800296,6.0,86.783,86.717,3.04292685]
[1646031800896,6.0,86.788,86.717,3.04292685]
[1646031801098,4.61,86.787,86.717,3.04292685]
[1646031801298,6.0,86.786,86.717,3.04292685]
[1646031801498,17.3039,86.78,86.717,3.04292685]
[1646031801700,10.611,86.779,86.717,3.04292685]
[1646031803498,6.0,86.779,86.717,3.04292685]
[1646031803702,6.0,86.794,86.717,3.04292685]
[1646031803928,6.0,86.795,86.718,23.2264]
[1646031804114,6.0,86.795,86.719,2.3321419]
[1646031805320,17.3023,86.79,86.719,2.3321419]
[1646031805520,10.61,86.789,86.719,2.3321419]
[1646031806921,17.3042,86.78,86.719,2.3321419]
[1646031807118,10.61,86.779,86.719,2.3321419]
[1646031808220,22.70260811,86.812,86.719,2.3321419]
[1646031808419,80.12132661,86.853,86.685,54.13850055]
[1646031808420,3.20462661,86.853,86.72,78.9209443]
[1646031808623,3.20462661,86.879,86.73,208.52]
[1646031808822,3.20462661,86.911,86.74,16.68]
[1646031809019,4.606,86.91,86.761,115.3]
[1646031809222,47.65634503,86.909,86.79,57.5844]
[1646031809420,47.65634503,86.909,86.8,16.68]
[1646031809621,1.72193073,86.908,86.802,2.91868994]
[1646031809821,1.72193073,86.908,86.81,208.52]
[1646031810023,4.605,86.948,86.812,2.9201891]
[1646031810220,27.69320652,86.938,86.821,2.30567865]
[1646031810420,27.69320652,86.938,86.804,4.604]
[1646031810622,115.3,86.936,86.803,2.285767]
[1646031810821,115.3,86.934,86.803,2.285767]
[1646031811021,5.9839979,86.935,86.803,2.285767]
[1646031811022,116.85288887,86.929,86.803,2.285767]
[1646031811224,115.3,86.927,86.803,2.285767]
[1646031811429,17.282,86.91,86.811,115.3]
[1646031811635,66.48722766,86.909,86.813,115.3]
[1646031811829,66.48722766,86.909,86.815,115.3]
[1646031812034,4.605,86.908,86.816,8.47962008]
[1646031812230,6.0,86.907,86.816,8.47962008]
[1646031812430,4.605,86.906,86.82,17.2777]
[1646031812631,6.0,86.905,86.821,8.44674025]
[1646031812831,71.09122766,86.909,86.821,8.44674025]
[1646031813233,71.09122766,86.909,86.821,2.44674025]
[1646031813430,17.2801,86.9,86.821,2.44674025]
[1646031813630,6.0,86.899,86.821,2.44674025]
[1646031813831,4.605,86.898,86.811,2.7104089]
[1646031814032,6.0,86.897,86.812,6.0]
[1646031814230,4.605,86.896,86.812,6.0]
[1646031814429,60.48722766,86.909,86.812,6.0]
[1646031814630,6.0,86.908,86.813,118.04678921]
[1646031814831,6.0,86.908,86.821,2.68322576]
[1646031815030,6.0,86.908,86.823,115.3]
[1646031815229,6.0,86.908,86.822,6.0]
[1646031815230,60.48722766,86.909,86.825,115.3]
[1646031815431,6.0,86.908,86.841,115.3]
[1646031815632,6.0,86.908,86.843,115.3]
[1646031815832,6.0,86.908,86.85,17.2716]
[1646031816030,6.0,86.908,86.851,8.44362702]
[1646031816332,6.0,86.908,86.851,2.44362702]
[1646031816530,6.0,86.908,86.84,16.68]
[1646031816833,6.0,86.908,86.831,2.9200523]
[1646031817037,6.0,86.908,86.832,6.0]
[1646031817231,6.0,86.908,86.831,2.9200523]
[1646031817432,10.604,86.908,86.832,6.0]
[1646031817833,6.0,86.908,86.832,6.0]
[1646031818033,6.0,86.908,86.833,115.3]
[1646031818233,6.0,86.908,86.835,115.3]
[1646031818435,6.0,86.908,86.836,9.08224841]
[1646031819234,6.0,86.908,86.836,6.0]
[1646031819437,6.0,86.908,86.831,2.67857964]
[1646031819438,6.0,86.908,86.832,6.0]
[1646031819636,6.0,86.908,86.831,2.67857964]
[1646031819837,6.0,86.908,86.832,6.0]
[1646031820037,4.604,86.907,86.832,6.0]
[1646031820338,6.0,86.906,86.833,6.0]
[1646031820537,6.0,86.906,86.832,6.0]
[1646031820837,60.48722766,86.909,86.832,6.0]
[1646031821042,6.0,86.908,86.832,6.0]
[1646031821438,6.0,86.908,86.831,2.67857964]
[1646031821637,6.0,86.908,86.832,6.0]
[1646031821839,6.0,86.908,86.831,2.67857964]
[1646031823349,17.2804,86.9,86.831,2.67857964]
[1646031823542,17.2804,86.9,86.811,2.52518869]
[1646031823543,10.604,86.899,86.811,2.52518869]
[1646031823743,10.604,86.899,86.803,2.95612538]
[1646031824646,51.79032908,86.879,86.803,2.95612538]
[1646031824840,6.0,86.878,86.804,6.0]
[1646031825241,6.0,86.878,86.803,2.95612538]
[1646031826444,6.0,86.878,86.804,6.0]
[1646031826445,4.606,86.877,86.804,6.0]
[1646031826646,6.0,86.876,86.804,6.0]
[1646031827247,6.0,86.877,86.804,6.0]
[1646031827647,51.79032908,86.879,86.804,6.0]
[1646031828050,8.34,86.9,86.805,4.606]
[1646031828252,6.0,86.899,86.82,13.83]
[1646031828450,6.0,86.899,86.821,6.0]
[1646031828653,6.0,86.899,86.821,8.5741514]
[1646031829054,44.14998202,86.898,86.821,8.5741514]
[1646031829255,6.0,86.897,86.821,8.5741514]
[1646031829454,6.0,86.897,86.821,2.70024472]
[1646031829655,6.0,86.897,86.82,13.83]
[1646031829855,6.0,86.897,86.821,6.0]
[1646031830179,6.0,86.897,86.822,115.3]
[1646031830356,6.0,86.897,86.824,115.3]
[1646031830657,6.0,86.897,86.826,2.96064606]
[1646031830855,6.0,86.897,86.831,115.3]
[1646031831056,6.0,86.897,86.832,6.0]
[1646031831455,6.0,86.897,86.831,3.06209775]
[1646031831657,6.0,86.897,86.83,13.83]
[1646031831857,6.0,86.897,86.831,6.0]
[1646031832058,6.0,86.897,86.832,2.74678921]
[1646031832458,6.0,86.897,86.831,2.65863962]
[1646031832657,10.604,86.897,86.807,5.52132429]
[1646031832859,6.0,86.897,86.808,6.0]
[1646031833060,6.0,86.897,86.812,2.37290211]
[1646031833258,6.0,86.897,86.815,2.36398662]
[1646031833459,6.0,86.897,86.816,6.0]
[1646031834059,6.0,86.897,86.817,2.74678921]
[1646031834260,6.0,86.897,86.819,115.3]
[1646031834464,6.0,86.897,86.82,6.0]
[1646031834663,6.0,86.897,86.82,8.74678921]
[1646031834863,6.0,86.897,86.821,2.74678921]
[1646031835065,4.605,86.896,86.821,2.74678921]
[1646031835264,6.0,86.895,86.811,3.09075908]
[1646031835467,6.0,86.897,86.811,3.09075908]
[1646031835866,51.5827,86.908,86.812,6.0]
[1646031836165,4.605,86.927,86.822,2.47444032]
[1646031836367,4.604,86.949,86.825,2.81644894]
[1646031836565,48.4799,86.957,86.841,115.3]
[1646031836766,1.39022355,86.955,86.843,2.31799216]
[1646031837066,17.2723,86.94,86.844,6.0]
[1646031837267,7.70485177,86.939,86.844,6.0]
[1646031837469,4.603,86.938,86.844,6.0]
[1646031837688,6.0,86.937,86.828,115.3]
[1646031837888,6.0,86.937,86.827,6.0]
[1646031837889,30.6159,86.937,86.845,2.74678921]
[1646031838090,30.6159,86.937,86.846,6.0]
[1646031838289,17.2741,86.93,86.846,6.0]
[1646031838488,6.0,86.929,86.846,2.74678921]
[1646031838788,56.1069073,86.928,86.836,2.74678921]
[1646031838992,6.0,86.927,86.837,6.0]
[1646031839588,4.603,86.926,86.839,3.01829582]
[1646031839792,6.0,86.925,86.842,2.83344724]
[1646031839993,56.1069073,86.928,86.845,2.4629207]
[1646031840291,56.1069073,86.928,86.848,2.96710036]
[1646031840491,56.1069073,86.928,86.85,13.83]
[1646031840693,56.1069073,86.928,86.851,6.0]
[1646031840892,6.0,86.927,86.851,8.7883211]
[1646031841091,6.0,86.927,86.851,11.53511031]
[1646031841292,6.0,86.927,86.852,118.04678921]
[1646031841600,56.1069073,86.928,86.855,2.74333631]
[1646031841893,56.1069073,86.928,86.856,8.74678921]
[1646031842291,56.1069073,86.928,86.857,2.74678921]
[1646031842693,6.0,86.927,86.855,2.74333631]
[1646031843493,56.1069073,86.928,86.856,6.0]
[1646031843897,4.603,86.959,86.861,115.3]
[1646031844097,6.0,86.956,86.863,115.3]
[1646031844295,6.0,86.956,86.865,115.3]
[1646031844494,6.0,86.956,86.866,9.03860859]
[1646031844695,4.602,86.955,86.866,6.0]
[1646031844895,6.0,86.954,86.866,6.0]
[1646031845205,4.602,86.953,86.867,2.74678921]
[1646031845401,44.79926945,86.955,86.871,115.3]
[1646031845402,6.0,86.952,86.871,115.3]
[1646031845608,6.0,86.952,86.874,2.78533882]
[1646031845808,6.0,86.952,86.875,6.0]
[1646031846011,6.0,86.954,86.875,6.0]
[1646031846412,6.0,86.954,86.876,2.74678921]
[1646031846616,6.0,86.954,86.877,6.0]
[1646031848114,6.0,86.954,86.876,2.74678921]
[1646031848315,6.0,86.954,86.877,6.0]
[1646031848513,6.0,86.954,86.876,2.74678921]
[1646031848717,6.0,86.954,86.877,6.0]
[1646031849122,17.2702,86.95,86.877,6.0]
[1646031849319,10.602,86.949,86.869,2.95812358]
[1646031850121,37.29853986,86.949,86.869,2.95812358]
[1646031850321,17.2723,86.94,86.869,2.95812358]
[1646031850520,10.602,86.939,86.869,2.95812358]
[1646031850721,4.602,86.939,86.858,2.90010081]
[1646031850923,6.0,86.938,86.858,2.90010081]
[1646031851123,4.603,86.937,86.858,2.90010081]
[1646031851323,6.0,86.936,86.858,2.90010081]
[1646031851524,17.2749,86.93,86.858,2.90010081]
[1646031851825,55.42759441,86.928,86.858,2.90010081]
[1646031852026,10.603,86.927,86.858,2.90010081]
[1646031852927,6.0,86.927,86.858,2.90010081]
[1646031853127,4.603,86.926,86.858,2.90010081]
[1646031853326,17.2764,86.92,86.858,2.90010081]
[1646031853525,10.603,86.919,86.843,2.56754764]
[1646031854628,17.2764,86.92,86.844,2.74678921]
[1646031854927,6.0,86.919,86.844,2.74678921]
[1646031855529,4.603,86.918,86.844,2.74678921]
[1646031855730,6.0,86.917,86.844,2.74678921]
[1646031856129,6.0,86.917,86.843,2.56754764]
[1646031856328,6.0,86.918,86.843,2.56754764]
[1646031858152,6.0,86.919,86.843,2.56754764]
[1646031858351,23.3737,86.927,86.845,115.3]
[1646031858550,4.603,86.948,86.847,115.3]
[1646031858750,4.603,86.948,86.85,13.83]
[1646031859051,4.603,86.948,86.851,8.94881016]
[1646031859249,6.0,86.927,86.851,8.94881016]
[1646031859450,6.0,86.927,86.851,11.69559937]
[1646031859652,6.0,86.927,86.852,2.74678921]
[1646031859849,6.0,86.927,86.854,2.69641708]
[1646031860051,6.0,86.927,86.855,6.0]
[1646031860251,6.0,86.927,86.855,8.74678921]
[1646031860453,6.0,86.927,86.855,6.0]
[1646031860653,6.0,86.927,86.856,2.74678921]
[1646031860952,6.0,86.927,86.854,2.69641708]
[1646031861153,10.603,86.927,86.855,2.74678921]
[1646031861558,6.0,86.927,86.855,2.74678921]
[1646031861755,17.2743,86.93,86.855,2.74678921]
[1646031861955,6.0,86.927,86.855,2.74678921]
[1646031862161,6.0,86.927,86.854,2.69641708]
[1646031865960,6.0,86.927,86.855,2.74678921]
[1646031866163,4.603,86.929,86.855,2.74678921]
[1646031866164,6.0,86.928,86.862,2.8166756]
[1646031866359,6.0,86.947,86.865,2.99450719]
[1646031866560,6.0,86.947,86.867,115.3]
[1646031866760,6.0,86.947,86.869,115.3]
[1646031866960,60.11690978,86.946,86.872,2.69236626]
[1646031867163,6.0,86.945,86.873,6.0]
[1646031867362,6.0,86.945,86.873,2.74678921]
[1646031867563,10.602,86.945,86.873,2.74678921]
[1646031868162,6.0,86.945,86.873,2.74678921]
[1646031868762,6.0,86.945,86.87,13.83]
[1646031868962,17.2723,86.94,86.871,2.27565111]
[1646031869162,6.0,86.939,86.871,2.27565111]
[1646031869363,4.602,86.938,86.871,2.27565111]
[1646031869564,6.0,86.937,86.871,2.27565111]
[1646031869765,4.602,86.936,86.871,2.27565111]
[1646031869963,6.0,86.935,86.871,2.27565111]
[1646031870366,6.0,86.944,86.871,2.27565111]
[1646031870965,6.30377256,86.943,86.871,2.27565111]
[1646031871165,6.0,86.942,86.871,2.27565111]
[1646031871364,4.602,86.941,86.871,2.27565111]
[1646031871565,23.2723,86.94,86.871,2.27565111]
[1646031871767,24.97407256,86.94,86.871,2.27565111]
[1646031872165,1.70177256,86.939,86.871,2.27565111]
[1646031872368,6.0,86.938,86.871,2.27565111]
[1646031872567,60.11690978,86.946,86.871,2.27565111]
[1646031872766,6.0,86.945,86.871,2.27565111]
[1646031872968,6.0,86.945,86.872,8.74678921]
[1646031873365,6.0,86.945,86.873,2.74678921]
[1646031873566,6.0,86.945,86.874,6.0]
[1646031873973,6.0,86.945,86.874,8.74678921]
[1646031874871,6.0,86.945,86.871,2.27565111]
[1646031875070,6.0,86.945,86.872,6.0]
[1646031875272,4.602,86.944,86.871,2.27565111]
[1646031875472,6.0,86.943,86.871,2.27565111]
[1646031875873,6.0,86.945,86.871,2.27565111]
[1646031876072,17.2724,86.94,86.871,2.27565111]
[1646031876274,119.902,86.939,86.848,2.74678921]
[1646031876479,1.79994832,86.938,86.848,2.74678921]
[1646031876674,115.3,86.936,86.829,2.59071791]
[1646031876877,1.36520134,86.933,86.829,2.59071791]
[1646031877075,115.3,86.929,86.829,2.59071791]
[1646031877273,17.2781,86.92,86.829,2.59071791]
[1646031877476,46.47591145,86.918,86.83,8.74678921]
[1646031877674,6.0,86.917,86.83,8.74678921]
[1646031877875,6.0,86.917,86.831,2.74678921]
[1646031878075,6.0,86.917,86.833,2.26628999]
[1646031878273,6.0,86.917,86.834,6.0]
[1646031878474,6.0,86.917,86.834,8.74678921]
[1646031878674,46.47591145,86.918,86.835,2.28154682]
[1646031878876,46.47591145,86.918,86.836,6.0]
[1646031879174,46.47591145,86.918,86.84,13.83]
[1646031879376,46.47591145,86.918,86.842,115.3]
[1646031879575,46.47591145,86.918,86.844,115.3]
[1646031879776,46.47591145,86.918,86.846,115.3]
[1646031879977,46.47591145,86.918,86.85,13.83]
[1646031880178,46.47591145,86.918,86.851,29.4913]
[1646031880377,41.4068,86.94,86.852,115.3]
[1646031880577,6.0,86.939,86.854,115.3]
[1646031880775,6.0,86.939,86.856,115.3]
[1646031880975,6.0,86.939,86.858,115.3]
[1646031881177,6.0,86.939,86.859,6.0]
[1646031881375,55.80739311,86.938,86.86,13.83]
[1646031881576,6.0,86.937,86.861,6.0]
[1646031881778,55.80739311,86.938,86.862,24.3015]
[1646031881978,6.0,86.937,86.864,115.3]
[1646031882279,6.0,86.937,86.865,6.0]
[1646031882697,6.0,86.937,86.864,6.0]
[1646031883679,6.0,86.936,86.864,6.0]
[1646031883879,6.0,86.937,86.864,6.0]
[1646031884881,17.2742,86.93,86.863,2.99732872]
[1646031885085,6.0,86.929,86.863,2.99732872]
[1646031885280,4.603,86.928,86.863,2.99732872]
[1646031885483,6.0,86.927,86.863,2.99732872]
[1646031885682,4.603,86.926,86.863,2.99732872]
[1646031885884,6.0,86.925,86.863,2.99732872]
[1646031886282,4.603,86.937,86.863,2.99732872]
[1646031886482,17.2742,86.93,86.863,2.99732872]
[1646031886681,6.0,86.929,86.863,2.99732872]
[1646031887687,55.80739311,86.938,86.863,2.99732872]
[1646031887884,6.0,86.937,86.863,2.99732872]
[1646031888285,6.0,86.937,86.864,6.0]
[1646031888887,6.0,86.937,86.865,115.3]
[1646031889086,6.0,86.937,86.866,8.61088636]
[1646031889489,6.0,86.937,86.866,11.35767557]
[1646031889688,6.0,86.937,86.866,8.74678921]
[1646031889889,55.80739311,86.938,86.866,8.74678921]
[1646031891389,6.0,86.937,86.866,2.74678921]
[1646031891593,6.0,86.937,86.867,6.0]
[1646031891793,6.0,86.937,86.862,6.0]
[1646031891992,6.0,86.937,86.861,2.97761138]
[1646031893494,55.80739311,86.938,86.862,6.0]
[1646031893892,55.80739311,86.938,86.862,8.74678921]
[1646031894893,6.0,86.937,86.862,25.61958921]
[1646031895094,6.0,86.937,86.863,2.53828442]
[1646031895294,6.0,86.937,86.864,6.0]
[1646031895495,55.80739311,86.938,86.864,6.0]
[1646031895693,55.80739311,86.938,86.865,115.3]
[1646031895894,24.1332,86.94,86.867,115.3]
[1646031896094,22.792,86.949,86.869,115.3]
[1646031896295,6.0,86.948,86.871,115.3]
[1646031896493,24.2251,86.959,86.871,115.3]
[1646031896494,6.0,86.958,86.873,115.3]
[1646031896694,6.0,86.958,86.875,115.3]
[1646031896895,1.5810374,86.957,86.891,115.3]
[1646031897095,1.5810374,86.957,86.901,115.3]
[1646031897297,47.36163954,86.975,86.9,16.59]
[1646031897298,1.5810374,86.974,86.903,115.3]
[1646031897497,1.5810374,86.974,86.905,115.3]
[1646031897709,47.36163954,86.975,86.904,33.63729609]
[1646031897710,47.36163954,86.975,86.906,8.72519432]
[1646031898012,1.58111264,86.974,86.906,8.72519432]
[1646031898210,6.0,86.973,86.906,8.72519432]
[1646031899111,6.0,86.974,86.906,8.72519432]
[1646031899512,6.0,86.974,86.911,115.3]
[1646031899714,6.0,86.974,86.912,2.37834749]
[1646031899913,6.0,86.974,86.913,6.0]
[1646031900111,6.0,86.987,86.913,6.0]
[1646031900516,17.2645,86.98,86.912,2.37834749]
[1646031900713,6.0,86.979,86.913,6.0]
[1646031900913,52.83685083,86.978,86.913,6.0]
[1646031901115,6.0,86.977,86.912,2.37834749]
[1646031901313,7.58102515,86.977,86.912,2.37834749]
[1646031901814,1.58102515,86.976,86.912,2.37834749]
[1646031902014,17.2662,86.97,86.912,2.37834749]
[1646031902215,6.0,86.969,86.905,2.86269399]
[1646031902715,1.58102515,86.968,86.905,2.86269399]
[1646031902913,10.601,86.967,86.905,2.86269399]